bitfinex/quotes_ETHUSD_20250808
["timestamp","ask_amount","ask_price","bid_price","bid_amount"]
[1754661121557,0.00850936,3990.0,3988.1,3.0]
[1754661121558,0.00850936,3990.0,3989.0,0.4674]
[1754661121719,2.50637607,3989.9,3989.0,0.4674]
[1754661122074,0.00850936,3990.0,3988.4,0.34798794]
[1754661122075,2.5066318,3989.5,3988.4,0.34798794]
[1754661122223,2.50672258,3989.3,3988.3,2.97467484]
[1754661122571,0.00850936,3990.0,3988.7,0.5]
[1754661122869,0.00850936,3990.0,3989.1,3.0]
[1754661123004,0.03983768,3990.0,3989.1,0.34674]
[1754661123204,1.6628,3989.9,3988.1,0.4674]
[1754661123403,2.50645411,3989.7,3988.1,0.4674]
[1754661123638,2.50645411,3989.7,3988.4,2.50727108]
[1754661123639,2.5066337,3989.5,3988.4,2.50727108]
[1754661123803,1.6628,3989.9,3988.5,0.01248439]
[1754661124005,0.00850936,3990.0,3988.5,2.0242]
[1754661124223,0.00850936,3990.0,3988.7,3.0]
[1754661124405,0.00850936,3990.0,3989.7,3.0]
[1754661124842,0.00850936,3990.0,3989.2,1.5568]
[1754661125056,0.00850936,3990.0,3989.9,5.50632847]
[1754661125577,0.00850936,3990.0,3989.9,7.53052847]
[1754661125733,0.004,3990.5,3990.4,2.50601443]
[1754661125933,0.004,3990.5,3990.0,5.50626566]
[1754661125934,0.004,3990.5,3990.0,3.4674]
[1754661126261,0.004,3990.5,3990.1,3.0]
[1754661126446,0.004,3990.5,3989.5,0.4674]
[1754661126663,0.01250876,3990.5,3989.5,3.4674]
[1754661126846,0.004,3990.5,3990.4,5.50601443]
[1754661127048,0.004,3990.5,3990.4,10.24901443]
[1754661127247,0.002,3991.1,3991.0,2.50563768]
[1754661127557,4.743,3993.4,3992.6,2.5046134]
[1754661127558,1.6628,3993.4,3992.6,2.5046134]
[1754661127738,3.16957037,3994.9,3992.7,0.01242034]
[1754661127739,2.50380167,3994.0,3992.7,0.01242034]
[1754661128067,1.6628,3994.0,3992.4,3.0]
[1754661128267,0.00850264,3993.9,3993.0,3.0]
[1754661128569,1.6628,3993.8,3992.6,3.0]
[1754661128756,1.6628,3993.8,3992.9,3.0]
[1754661128957,11.298686,3995.5,3992.9,3.0]
[1754661129176,1.6628,3994.7,3993.2,2.50425723]
[1754661129365,1.6628,3995.3,3993.4,3.0]
[1754661129548,1.6628,3995.3,3993.5,0.4674]
[1754661129733,1.6628,3995.3,3995.2,0.1248]
[1754661130071,4.16574095,3995.3,3995.2,0.1248]
[1754661130588,4.17424359,3995.3,3995.2,0.1248]
[1754661130782,4.84507875,3995.3,3995.2,0.1248]
[1754661130938,4.83657611,3995.3,3995.2,0.1248]
[1754661131248,0.002,3995.9,3995.2,3.1248]
[1754661131451,0.20284,3997.6,3994.8,4.74]
[1754661131452,0.002,3997.6,3995.8,3.0]
[1754661131662,0.002,3997.6,3997.1,2.50181381]
[1754661131847,0.002,3997.6,3997.1,10.25316837]
[1754661132047,0.002,3997.6,3997.1,12.21221381]
[1754661132247,0.002,3997.6,3997.1,8.94462831]
[1754661132572,0.002,3997.6,3997.1,13.68362831]
[1754661132770,0.002,3997.6,3997.1,12.21221381]
[1754661133027,0.002,3997.6,3997.1,3.0]
[1754661133314,0.002,3997.6,3997.1,7.739]
[1754661133516,1e-08,3998.4,3997.2,3.0]
[1754661133716,1e-08,3998.4,3998.1,5.50118806]
[1754661133870,1e-08,3998.4,3998.1,10.24018806]
[1754661134070,0.00849361,3998.9,3998.4,5.5010004]
[1754661134378,7.09710938,3999.9,3998.4,5.9684004]
[1754661134578,7.09710938,3999.9,3998.4,10.7074004]
[1754661134996,7.09710938,3999.9,3998.4,12.2114004]
[1754661135807,7.09710938,3999.9,3998.4,13.12738915]
[1754661136109,7.09710938,3999.9,3998.4,13.12438915]
[1754661136274,7.09710938,3999.9,3998.4,7.4724004]
[1754661136475,7.09710938,3999.9,3998.4,12.2074004]
[1754661136870,7.09710938,3999.9,3998.4,12.2054004]
[1754661137110,8.75990938,3999.9,3998.4,10.7014004]
[1754661137405,8.75990938,3999.9,3998.4,12.2054004]
[1754661137771,11.2599764,3999.9,3998.4,10.7014004]
[1754661138107,8.75990938,3999.9,3998.4,10.7014004]
[1754661138493,8.75990938,3999.9,3998.4,5.9684004]
[1754661138692,8.75990938,3999.9,3998.4,10.7004004]
[1754661138892,7.09710938,3999.9,3998.4,14.12714971]
[1754661139097,7.09710938,3999.9,3998.4,12.2059004]
[1754661139604,8.75990938,3999.9,3998.4,10.7004004]
[1754661139805,8.75990938,3999.9,3998.4,12.2059004]
[1754661140017,7.09710938,3999.9,3998.4,12.2059004]
[1754661140233,7.09710938,3999.9,3998.4,12.2039004]
[1754661140387,7.09710938,3999.9,3998.4,10.6984004]
[1754661140596,7.09710938,3999.9,3998.4,5.9684004]
[1754661140784,7.09710938,3999.9,3998.4,12.2039004]
[1754661140983,7.09710938,3999.9,3998.4,5.9684004]
[1754661141230,9.9117798,3999.7,3998.4,10.6984004]
[1754661141382,9.9117798,3999.7,3998.4,6.0932004]
[1754661141588,9.9117798,3999.7,3998.4,10.8232004]
[1754661141787,9.9117798,3999.7,3998.4,12.3287004]
[1754661142233,8.2489798,3999.7,3998.9,2.50068768]
[1754661142398,8.2489798,3999.7,3998.9,5.50068768]
[1754661142600,8.2489798,3999.7,3998.9,10.69708768]
[1754661142913,8.2489798,3999.7,3998.9,12.20258768]
[1754661143083,1e-08,3999.0,3998.9,12.20258768]
[1754661143287,1e-08,3999.0,3998.9,13.67292375]
[1754661143485,1e-08,3999.0,3998.9,13.67192375]
[1754661143727,15.36919418,4000.0,3999.9,2.5000625]
[1754661143927,15.36919418,4000.0,3999.9,5.9674625]
[1754661144234,15.36919418,4000.0,3999.9,7.728]
[1754661144519,15.36919418,4000.0,3998.8,1.5055]
[1754661144520,16.98509418,4000.0,3999.0,0.4287]
[1754661144692,16.98509418,4000.0,3999.1,4.728]
[1754661144894,15.37768001,4000.0,3998.9,0.4287]
[1754661145096,1.6159,3999.9,3999.0,4.727]
[1754661145281,15.37768001,4000.0,3998.9,0.4287]
[1754661145282,15.37768001,4000.0,3999.4,2.50031452]
[1754661145492,16.99358001,4000.0,3999.5,4.727]
[1754661145693,15.37768001,4000.0,3999.5,5.03728151]
[1754661145956,15.37768001,4000.0,3999.9,2.5000625]
[1754661146245,15.36919418,4000.0,3999.9,3.0]
[1754661146527,15.36919418,4000.0,3999.9,5.5000625]
[1754661146828,15.36919418,4000.0,3999.9,7.726]
[1754661147239,15.36919418,4000.0,3999.9,3.0]
[1754661147528,16.98509418,4000.0,3998.5,2.50092703]
[1754661147738,16.98509418,4000.0,3999.6,2.50020088]
[1754661147933,1.6159,3999.9,3999.1,0.4287]
[1754661148140,1.6159,3999.9,3999.3,3.0]
[1754661148343,1.6159,3999.9,3999.5,3.0]
[1754661148639,15.36919418,4000.0,3999.9,3.0]
[1754661148841,15.36919418,4000.0,3999.9,7.724]
[1754661149006,15.36919418,4000.0,3999.9,3.0]
[1754661149214,16.98509418,4000.0,3999.9,7.724]
[1754661149408,16.98509418,4000.0,3999.9,3.0]
[1754661149611,16.98509418,4000.0,3998.5,1.5055]
[1754661149612,2.5001107,3999.9,3998.3,6.007]
[1754661149937,1.6159,3999.8,3998.6,2.50083317]
[1754661150137,1.62438492,3999.8,3998.9,2.50064144]
[1754661150317,1.62438492,3999.8,3999.0,4.724]
[1754661150519,1.62438492,3999.8,3998.9,2.50063321]
[1754661150842,15.36919418,4000.0,3999.0,5.01693332]
[1754661151044,15.36919418,4000.0,3999.3,3.0]
[1754661151247,15.36919418,4000.0,3999.9,2.5000625]
[1754661151422,15.36919418,4000.0,3999.9,10.6527625]
[1754661151768,15.36919418,4000.0,3999.9,7.723]
[1754661152163,16.98509418,4000.0,3999.9,3.0]
[1754661152322,21.19941619,4000.0,3999.9,0.1248]
[1754661152526,21.56771619,4000.0,3999.9,0.1248]
[1754661152712,17.35339418,4000.0,3999.9,0.1248]
[1754661152913,16.9935791,4000.0,3999.9,0.1248]
[1754661153156,19.48509418,4000.0,3999.9,0.1248]
[1754661153465,19.48509418,4000.0,3998.3,6.007]
[1754661153466,2.50031414,3999.5,3998.5,2.50093118]
[1754661153614,2.50031414,3999.5,3997.9,2.92995775]
[1754661153615,1.6159,3999.4,3998.6,2.50083268]
[1754661153816,1.6159,3999.4,3998.7,4.722]
[1754661154036,1.6159,3999.4,3999.3,0.1248]
[1754661154351,15.74597946,4000.0,3999.3,4.8468]
[1754661154520,1.6159,3999.9,3999.4,3.0]
[1754661154719,15.36919418,4000.0,3999.9,0.1248]
[1754661154928,15.37767946,4000.0,3999.8,0.1248]
[1754661155147,15.37767946,4000.0,3999.8,4.8468]
[1754661155329,1.6159,3999.9,3999.8,4.8468]
[1754661155578,1.6159,3999.9,3999.8,0.1248]
[1754661155743,4.4842625,3999.9,3999.8,0.1248]
[1754661156085,6.72808922,3999.9,3999.8,0.1248]
[1754661156289,1.99268528,3999.9,3999.8,0.1248]
[1754661156487,4.49274778,3999.9,3999.8,0.1248]
[1754661157294,1.99268528,3999.9,3999.8,0.1248]
[1754661157455,1.62438528,3999.9,3999.8,0.1248]
[1754661158548,4.49274778,3999.9,3999.8,0.1248]
[1754661158748,6.95094198,3999.9,3999.8,0.1248]
[1754661159064,11.6624567,3999.9,3999.8,0.1248]
[1754661159265,2.50033705,3999.5,3998.4,4.72]
[1754661159574,1.69409742,3999.4,3998.5,3.0]
[1754661159782,1.62438749,3999.4,3998.4,4.72]
[1754661159943,1.62438749,3999.4,3999.3,0.1248]
[1754661160148,4.97524787,3999.4,3999.3,0.1248]
[1754661160347,2.48336031,3999.4,3999.3,0.1248]
[1754661160556,4.98373536,3999.4,3999.3,0.1248]
[1754661161668,1.70259094,3999.4,3999.3,0.1248]
[1754661161849,1.70259094,3999.4,3998.4,0.4287]
[1754661162049,0.07820345,3999.3,3998.4,0.4287]
[1754661162278,0.07820345,3999.2,3998.3,3.0]
[1754661162479,0.07820345,3999.1,3998.4,2.5010004]
[1754661162645,4.11629891,3999.4,3998.4,2.5010004]
[1754661162646,0.07820345,3999.0,3998.5,5.50088882]
[1754661162842,0.07820345,3998.9,3998.6,3.0]
[1754661163108,0.00848749,3999.2,3999.1,3.0]
[1754661163285,0.08668252,3999.2,3999.1,10.21856262]
[1754661163587,0.08668252,3999.2,3999.1,7.718]
[1754661163786,1.69409503,3999.2,3999.1,3.0]
[1754661164162,0.07819503,3999.2,3999.1,3.0]
[1754661164765,0.07819503,3999.2,3999.1,5.50056262]
[1754661164951,0.07819503,3999.2,3999.1,6.34499554]
[1754661165368,0.00848999,3999.4,3999.1,4.27313292]
[1754661165599,0.00848999,3999.4,3999.3,2.50043757]
[1754661165792,15.36919418,4000.0,3999.9,2.5000625]
[1754661166086,15.36919418,4000.0,3999.9,5.9287625]
[1754661166288,15.36919418,4000.0,3999.9,10.2160625]
[1754661166793,17.06327296,4000.0,3999.9,4.716]
[1754661167002,17.06327296,4000.0,3999.9,2.5000625]
[1754661167203,17.06327296,4000.0,3999.1,3.0]
[1754661167360,16.98509418,4000.0,3999.1,3.0]
[1754661167565,16.98509418,4000.0,3999.5,2.50027819]
[1754661167765,16.98509418,4000.0,3999.6,4.715]
[1754661167967,15.36919418,4000.0,3999.9,2.5000625]
[1754661168796,15.36919418,4000.0,3999.9,7.6437625]
[1754661169106,15.36919418,4000.0,3999.9,10.6437625]
[1754661169464,15.36919418,4000.0,3999.9,5.9287625]
[1754661169673,15.36919418,4000.0,3999.9,11.4856575]
[1754661169867,15.36919418,4000.0,3999.9,8.3442575]
[1754661170068,15.36919418,4000.0,3999.9,13.0582575]
[1754661170649,15.36919418,4000.0,3999.9,11.4856575]
[1754661170807,15.36919418,4000.0,3999.9,8.3442575]
[1754661171006,15.36919418,4000.0,3999.9,13.0582575]
[1754661171177,0.41607352,4000.5,4000.4,2.49975002]
[1754661171178,1e-08,4000.5,4000.4,2.49975002]
[1754661171378,1e-08,4000.5,4000.4,10.46272502]
[1754661171577,1e-08,4000.5,4000.4,12.46402502]
[1754661171778,1e-08,4000.5,4000.4,9.46402502]
[1754661171977,1e-08,4000.5,4000.4,12.58882502]
[1754661173205,1e-08,4000.5,4000.4,7.87582502]
[1754661173404,1e-08,4000.5,4000.4,12.58782502]
[1754661173593,1e-08,4000.5,4000.4,7.87582502]
[1754661173796,1e-08,4000.5,4000.4,18.46502502]
[1754661175096,1e-08,4000.8,4000.7,2.49956257]
[1754661175411,24.59036121,4001.0,4000.9,2.49943762]
[1754661175776,24.59036121,4001.0,4000.9,10.65773762]
[1754661176114,24.59036121,4001.0,4000.9,12.61603762]
[1754661176312,24.59036121,4001.0,4000.9,7.90603762]
[1754661176489,24.59036121,4001.0,4000.9,5.94773762]
[1754661176692,24.59036121,4001.0,4000.9,11.75799665]
[1754661176886,24.59036121,4001.0,4000.9,13.71629665]
[1754661177092,24.59036121,4001.0,4000.9,7.04799665]
[1754661177288,24.59036121,4001.0,4000.9,10.65673762]
[1754661177506,24.59036121,4001.0,4000.9,10.65573762]
[1754661177705,24.59036121,4001.0,4000.9,5.49943762]
[1754661177890,24.59036121,4001.0,4000.9,10.20743762]
[1754661178093,24.59036121,4001.0,4000.9,5.49943762]
[1754661178296,24.59036121,4001.0,4000.9,10.20743762]
[1754661178500,24.59036121,4001.0,4000.9,5.49943762]
[1754661178697,24.59036121,4001.0,4000.9,10.20643762]
[1754661179119,24.59036121,4001.0,4000.9,7.707]
[1754661179304,24.59036121,4001.0,4000.9,10.20643762]
[1754661179504,26.45416121,4001.0,4000.9,10.20643762]
[1754661180201,24.59036121,4001.0,4000.9,5.49943762]
[1754661180386,24.59036121,4001.0,4000.9,10.20543762]
[1754661180983,24.59036121,4001.0,4000.9,10.51683223]
[1754661181192,24.59036121,4001.0,4000.9,10.96513223]
[1754661181415,24.59036121,4001.0,4000.9,5.81083223]
[1754661181623,26.45416121,4001.0,4000.9,10.20543762]
[1754661181799,26.45416121,4001.0,4000.9,10.20443762]
[1754661181986,5.13384278,4003.4,4001.4,1.503]
[1754661182185,1.8638,4003.0,4001.9,0.55]
[1754661182381,1.8638,4002.6,4002.1,3.0]
[1754661182593,1.8638,4002.6,4001.2,0.4483]
[1754661182594,1.8638,4002.5,4002.3,3.0]
[1754661182818,1.8638,4002.4,4002.3,4.704]
[1754661183384,0.55912402,4002.9,4002.3,4.704]
[1754661183385,0.55912402,4002.9,4002.7,0.55]
[1754661183605,0.55912402,4002.9,4002.4,3.0]
[1754661183606,19.91392612,4002.8,4002.4,2.4066]
[1754661183819,19.91392612,4002.8,4002.5,0.4483]
[1754661184040,19.91392612,4002.8,4002.1,3.0]
[1754661184041,19.91392612,4002.8,4002.7,0.1248]
[1754661184188,19.91392612,4002.8,4002.7,3.1248]
[1754661184386,19.91392612,4002.8,4002.7,0.78288]
[1754661184702,19.91392612,4002.8,4002.7,7.703]
[1754661184897,19.92240874,4002.8,4002.7,3.4483]
[1754661185094,19.91392612,4002.8,4002.7,3.4483]
[1754661185295,0.004,4003.9,4002.7,13.3062321]
[1754661185664,4.69879182,4006.3,4005.4,0.55]
[1754661185822,0.47987918,4006.2,4005.9,4.144]
[1754661185993,0.34972471,4006.2,4006.0,8.85821561]
[1754661186194,0.34972471,4006.2,4005.5,6.001]
[1754661186195,0.34972471,4006.2,4006.1,9.40821468]
[1754661186408,0.1,4006.5,4006.1,19.7022321]
[1754661186607,0.1,4006.5,4006.4,4.694]
[1754661186810,1.18449207,4006.5,4006.4,4.70620938]
[1754661187121,1.18449207,4006.5,4006.4,4.694]
[1754661187323,1.91550793,4006.5,4006.4,4.144]
[1754661187545,8.2489798,4006.6,4005.0,0.2508]
[1754661187819,10.74489588,4006.6,4005.4,0.55]
[1754661188005,8.2489798,4006.6,4006.3,1.503]
[1754661188209,2.49636948,4005.9,4005.5,0.5252]
[1754661188409,4.79,4005.9,4003.6,5.998]
[1754661188623,2.3025,4005.8,4003.5,4.871]
[1754661188833,2.49727508,4004.4,4003.6,0.01224048]
[1754661189010,2.49727508,4004.4,4002.7,0.1]
[1754661189011,4.798,4004.4,4002.7,0.1]
[1754661189212,2.3025,4004.3,4002.8,4.81025672]
[1754661189436,2.3025,4004.3,4002.9,0.49102567]
[1754661189635,0.55,4004.0,4000.5,3.01926615]
[1754661189837,10.3062321,4003.4,4000.5,0.177896]
[1754661190034,4.8004392,4003.3,4001.1,0.1]
[1754661190342,2.3025,4003.3,4002.2,0.1]
[1754661190550,2.3025,4003.3,4002.2,3.1]
[1754661190771,4.80047676,4003.3,4002.3,0.7937]
[1754661190912,2.49838027,4002.6,4002.3,0.7937]
[1754661191116,4.842,4002.5,4000.5,0.077896]
[1754661191428,2.49856332,4002.3,4001.1,0.1]
[1754661191640,4.839,4002.4,4001.1,0.1]
[1754661191641,2.3025,4002.4,4001.1,0.1]
[1754661191817,2.49809017,4003.1,4000.5,0.077896]
[1754661191818,2.3025,4002.2,4001.4,0.1]
[1754661192018,2.3025,4002.2,4001.7,0.1]
[1754661192244,2.3025,4002.1,4000.7,2.49954319]
[1754661192453,2.49720724,4004.5,4002.2,0.1]
[1754661192639,1.8638,4002.9,4002.1,0.1]
[1754661192839,0.4387,4002.8,4001.4,0.1]
[1754661193185,0.4387,4002.8,4001.0,0.1]
[1754661193186,2.49927427,4001.2,4001.0,0.1]
[1754661193370,2.3025,4001.1,4000.5,0.077896]
[1754661193654,4.80181865,4001.1,4000.8,0.1]
[1754661193962,10.7948604,4003.4,4000.8,0.1]
[1754661194122,4.871,4003.3,4001.3,0.1]
[1754661194311,2.498064,4003.1,4002.2,0.1]
[1754661194511,2.498064,4003.1,4000.6,3.0]
[1754661194512,1.8638,4003.2,4003.0,0.1]
[1754661194729,1.8638,4003.2,4003.1,0.1]
[1754661194939,4.869,4003.2,4000.5,0.077896]
[1754661195144,4.869,4003.1,4002.0,0.1]
[1754661195316,6.7328,4003.0,4002.4,0.1]
[1754661195512,2.49852506,4002.4,4001.9,0.1]
[1754661195749,2.49852506,4002.4,4000.8,2.49947738]
[1754661195750,6.001,4004.3,4002.2,0.1]
[1754661195949,6.001,4004.3,4000.6,0.85192662]
[1754661195950,1.8638,4003.1,4003.0,0.1]
[1754661196152,6.7338,4003.1,4001.0,3.55]
[1754661196328,2.4981264,4003.0,4002.9,0.1]
[1754661196525,1.8638,4003.0,4002.9,0.1]
[1754661196724,1.8638,4003.0,4002.0,2.49874638]
[1754661196725,1.8638,4003.0,4001.6,3.0]
[1754661196938,6.001,4004.3,4003.6,0.1]
[1754661196939,1.8638,4003.7,4003.6,0.1]
[1754661197141,1.8638,4003.7,4002.1,3.0]
[1754661197142,1.87428371,4004.3,4004.0,0.1]
[1754661197461,2.3025,4004.2,4003.6,0.1]
[1754661197661,2.3025,4004.2,4003.5,0.1]
[1754661197662,4.862,4004.1,4003.5,0.1]
[1754661197827,2.3025,4004.2,4003.5,0.1]
[1754661198360,2.3025,4004.2,4003.7,0.1]
[1754661198533,2.3025,4004.1,4003.7,0.1]
[1754661198732,0.002,4004.3,4004.0,0.1]
[1754661198934,0.002,4004.3,4004.1,0.55]
[1754661199168,0.002,4004.3,4004.2,7.37137775]
[1754661199468,3.0,4006.5,4006.2,0.55]
[1754661199678,8.2489798,4006.6,4006.4,0.55]
[1754661199830,3.0,4006.5,4006.4,5.484]
[1754661200230,3.0,4006.5,4006.0,0.55]
[1754661200762,3.0,4006.5,4006.2,0.55]
[1754661200925,3.0,4006.5,4006.1,0.21946336]
[1754661200926,3.0,4006.5,4006.4,0.55]
[1754661201126,3.0,4006.5,4006.1,0.21946336]
[1754661201327,3.0,4006.5,4006.1,1e-08]
[1754661201526,2.49613099,4006.2,4006.1,1e-08]
[1754661201770,2.49613099,4006.2,4004.5,0.23870683]
[1754661201771,7.6989798,4006.6,4004.5,0.23870683]
[1754661201937,7.6989798,4006.6,4004.6,5.202]
[1754661201938,2.49668921,4005.4,4004.6,5.202]
[1754661202139,1.8638,4006.0,4004.6,5.202]
[1754661202366,1.8638,4006.0,4002.4,10.7948604]
[1754661202367,0.51681383,4005.9,4003.2,0.1]
[1754661202540,2.49781674,4003.5,4003.2,0.1]
[1754661202868,1.8638,4004.5,4002.9,0.1]
[1754661203332,2.3025,4005.3,4004.3,0.1]
[1754661203526,7.7032707,4006.0,4003.0,0.23050995]
[1754661203527,2.3025,4005.2,4003.1,0.1]
[1754661203742,2.49800159,4003.2,4003.1,0.1]
[1754661204062,4.80050159,4003.2,4003.1,0.1]
[1754661204362,2.49781441,4003.5,4003.4,0.1]
[1754661204779,2.49781441,4003.5,4001.2,3.0]
[1754661204780,1.993,4005.2,4003.9,0.1]
[1754661205081,2.49614103,4006.2,4004.5,0.1]
[1754661205266,2.4353,4006.1,4005.1,0.1248]
[1754661205580,2.4353,4006.1,4004.8,1.503]
[1754661205581,2.50504175,4005.5,4005.4,0.1248]
[1754661205744,0.00847453,4005.5,4005.4,0.1248]
[1754661206546,0.00847453,4005.5,4005.4,2.053]
[1754661206751,0.00847453,4005.5,4005.4,2.68181473]
[1754661206978,0.00847453,4005.5,4005.4,10.12457092]
[1754661207143,0.00847453,4005.5,4005.4,4.90957092]
[1754661207347,8.2489798,4007.8,4006.5,2.59594409]
[1754661207548,8.2489798,4007.8,4006.5,2.153]
[1754661207795,8.2489798,4007.8,4006.5,9.85994409]
[1754661208099,2.49552848,4007.2,4006.5,6.813]
[1754661208248,0.16128148,4007.5,4006.5,15.44380449]
[1754661208449,0.16128148,4007.5,4006.5,2.153]
[1754661208750,0.16128148,4007.5,4005.1,0.18677958]
[1754661208751,0.16128148,4007.5,4006.0,0.1]
[1754661209049,0.16128148,4007.5,4004.5,5.995]
[1754661209050,2.49644256,4005.7,4005.6,0.1]
[1754661209255,2.49644256,4005.7,4003.0,2.49810001]
[1754661209256,2.4353,4006.5,4005.3,0.1]
[1754661209475,2.49632435,4005.9,4005.3,0.1]
[1754661209674,2.49639131,4005.8,4005.2,0.1]
[1754661209948,2.4353,4006.5,4005.2,0.1]
[1754661209949,2.93830638,4006.4,4005.2,0.1]
[1754661210176,2.49664743,4005.4,4005.2,0.1]
[1754661210376,9.6919798,4006.6,4004.6,6.727]
[1754661210579,7.6989798,4006.6,4006.5,2.59594409]
[1754661210752,7.6989798,4006.6,4006.5,0.1]
[1754661211179,7.6989798,4006.6,4005.9,2.49631256]
[1754661211379,7.6989798,4006.6,4006.1,0.1]
[1754661211380,2.49613099,4006.2,4006.1,0.1]
[1754661211576,2.4353,4006.5,4005.2,0.1]
[1754661211776,2.4353,4006.5,4002.7,2.49825324]
[1754661211777,2.4353,4006.5,4004.9,0.1]
[1754661211778,2.49606869,4006.3,4004.9,0.1]
[1754661212048,2.49606869,4006.3,4005.3,0.1]
[1754661212250,7.6989798,4006.6,4006.5,2.49594409]
[1754661212449,7.6989798,4006.6,4006.5,10.83294409]
[1754661212684,7.6989798,4006.6,4006.5,3.0]
[1754661212910,7.6989798,4006.6,4006.5,0.1]
[1754661213046,10.1342798,4006.6,4006.5,0.1]
[1754661213483,7.6989798,4006.6,4006.5,5.59594409]
[1754661213984,7.6989798,4006.6,4006.5,11.2032724]
[1754661214191,7.6989798,4006.6,4006.5,5.9372724]
[1754661214391,7.6989798,4006.6,4006.5,11.1982724]
[1754661214567,7.6989798,4006.6,4006.5,10.85694409]
[1754661214888,7.6989798,4006.6,4006.5,11.18668474]
[1754661215054,0.16328148,4007.5,4007.4,2.59445482]
[1754661215253,0.16328148,4007.5,4007.4,11.40045482]
[1754661215482,0.002,4008.0,4007.5,3.0]
[1754661215796,0.002,4008.0,4007.9,6.04507223]
[1754661215994,8.2489798,4011.2,4008.8,0.65]
[1754661216156,1e-08,4008.9,4008.8,6.14451207]
[1754661216360,1e-08,4008.9,4008.8,22.18937247]
[1754661216660,1e-08,4008.9,4008.8,10.96431207]
[1754661216981,1e-08,4008.9,4008.8,11.51431207]
[1754661217188,1e-08,4008.9,4008.8,6.26931207]
[1754661217554,1e-08,4008.9,4008.8,11.51031207]
[1754661217754,24.46546877,4009.9,4008.6,3.0]
[1754661217955,2.4353,4009.8,4007.9,3.25]
[1754661218191,2.4353,4009.8,4007.8,2.62511718]
[1754661218192,24.46546877,4009.9,4008.3,10.7948604]
[1754661218390,24.46546877,4009.9,4008.0,5.238]
[1754661218391,23.46546877,4009.9,4008.6,10.7948604]
[1754661218591,23.46546877,4009.9,4009.2,0.55]
[1754661218810,23.46546877,4009.9,4009.3,8.259]
[1754661219110,23.46546877,4009.9,4009.8,3.04388996]
[1754661219289,23.46546877,4009.9,4009.8,17.29488996]
[1754661219521,23.46546877,4009.9,4009.8,17.29388996]
[1754661219666,23.46546877,4009.9,4009.8,12.03488996]
[1754661219868,23.46546877,4009.9,4009.8,17.29188996]
[1754661220076,8.2489798,4011.2,4010.1,0.55]
[1754661220401,8.2489798,4011.2,4009.9,3.12994582]
[1754661220402,8.2489798,4011.2,4010.2,5.252]
[1754661220708,8.2489798,4011.2,4010.5,0.55]
[1754661220929,8.2489798,4011.2,4010.6,5.256]
[1754661221080,8.2489798,4011.2,4011.1,2.49308169]
[1754661221421,8.2489798,4011.2,4011.1,8.252]
[1754661221622,8.2489798,4011.2,4011.1,3.0]
[1754661221827,8.2489798,4011.2,4011.1,8.248]
[1754661221985,8.2489798,4011.2,4011.1,3.0]
[1754661222336,10.2419798,4011.2,4011.1,8.244]
[1754661222503,8.2489798,4011.2,4011.1,5.49308169]
[1754661222828,8.2489798,4011.2,4011.1,10.73408169]
[1754661223146,8.2489798,4011.2,4011.1,8.238]
[1754661223422,8.2489798,4011.2,4011.1,8.236]
[1754661223624,8.2489798,4011.2,4011.1,10.72908169]
[1754661223984,8.2489798,4011.2,4011.1,10.72508169]
[1754661224323,8.2489798,4011.2,4011.1,5.49308169]
[1754661224624,8.2489798,4011.2,4011.1,10.72008169]
[1754661224994,8.2489798,4012.4,4011.6,2.49274722]
[1754661224995,21.58525842,4011.7,4011.6,2.49274722]
[1754661225222,21.58525842,4011.7,4011.6,3.0]
[1754661225519,24.02055842,4011.7,4011.6,3.0]
[1754661225886,24.02055842,4011.7,4011.6,8.217]
[1754661226085,24.02055842,4011.7,4011.6,3.0]
[1754661226328,21.58525842,4011.7,4011.6,21.50363136]
[1754661226502,21.58525842,4011.7,4011.6,22.05863136]
[1754661226823,24.02055842,4011.7,4010.8,5.218]
[1754661227084,24.02055842,4011.7,4009.1,5.986]
[1754661227214,24.02055842,4011.7,4010.7,10.7948604]
[1754661227427,24.02055842,4011.7,4011.6,2.49277096]
[1754661227592,8.2489798,4012.4,4012.3,2.49233606]
[1754661227935,8.2489798,4012.4,4012.3,10.90313606]
[1754661228091,8.2489798,4012.4,4012.3,3.1248]
[1754661228287,10.6842798,4012.4,4012.3,5.61713606]
[1754661228493,8.2489798,4012.4,4012.3,5.61713606]
[1754661228715,8.2489798,4012.4,4012.3,5.49233606]
[1754661228934,10.6842798,4012.4,4012.3,8.4138]
[1754661229093,10.6842798,4012.4,4012.3,5.61713606]
[1754661229450,32.32648979,4013.5,4012.4,3.0]
[1754661229728,32.32648979,4013.5,4013.4,2.49165296]
[1754661229900,32.32648979,4013.5,4013.4,21.70531336]
[1754661230232,0.4423,4014.8,4013.9,2.49134258]
[1754661230440,2.4353,4014.1,4013.2,5.985]
[1754661230591,2.4353,4013.9,4012.9,5.292]
[1754661230790,0.47344255,4013.8,4010.4,16.7798604]
[1754661231027,0.47344255,4013.8,4011.2,10.7948604]
[1754661231028,1.993,4013.7,4011.2,10.7948604]
[1754661231237,0.4423,4013.6,4011.2,10.7948604]
[1754661231439,1.993,4013.5,4011.9,2.49254169]
[1754661231593,0.4423,4013.4,4012.1,2.49245838]
[1754661231798,1.993,4013.3,4012.0,5.291]
[1754661231997,0.4423,4013.2,4011.1,10.7948604]
[1754661232246,1.993,4013.1,4011.4,2.49289524]
[1754661232547,1.993,4013.1,4012.2,2.49235173]
[1754661232548,0.4423,4013.0,4012.2,2.49235173]
[1754661232697,0.4423,4013.0,4012.4,3.0]
[1754661232902,0.4423,4013.0,4012.2,2.49236991]
[1754661233096,1.993,4012.9,4012.6,5.49213335]
[1754661233337,0.4423,4012.8,4012.0,3.0]
[1754661233529,0.4423,4012.8,4012.7,2.49208762]
[1754661233733,0.4423,4013.5,4012.8,3.0]
[1754661233898,1.993,4013.4,4013.2,2.49173401]
[1754661234099,1.993,4013.4,4011.8,5.984]
[1754661234304,1.993,4013.4,4012.6,2.49209566]